bitfinex-derivatives/quotes_ETHF0:USTF0_20250411
["timestamp","ask_amount","ask_price","bid_price","bid_amount"]
[1744385223913,13.0665,1558.0,1557.6,3.7511]
[1744385224313,7.1345,1558.0,1557.6,3.7511]
[1744385224521,3.9267,1558.0,1557.9,3.2078]
[1744385224820,3.9267,1558.0,1557.7,3.2078]
[1744385225419,3.9267,1558.0,1557.6,3.76073205]
[1744385226015,3.9267,1558.0,1557.7,3.2078]
[1744385226214,3.9267,1558.0,1557.8,3.9179]
[1744385226720,5.653,1558.2,1557.8,3.9179]
[1744385226914,9.5894,1558.2,1557.8,7.3726]
[1744385227111,9.5894,1558.2,1557.9,3.9179]
[1744385231020,9.5894,1558.2,1557.8,3.4547]
[1744385231319,3.9364,1558.2,1557.9,3.2078]
[1744385231619,6.40693205,1558.3,1558.1,3.2078]
[1744385231620,0.00963205,1558.3,1558.1,3.2078]
[1744385231923,3.4521,1558.9,1558.2,12.7615]
[1744385232121,3.8408,1558.8,1558.3,3.2078]
[1744385232319,1.28378,1558.7,1558.5,3.2078]
[1744385232621,18.13509416,1559.0,1558.6,3.7447]
[1744385232822,1.2837,1558.8,1558.6,3.7447]
[1744385233022,1.2837,1558.8,1558.6,3.75433205]
[1744385233223,1.2837,1558.8,1558.6,7.12913205]
[1744385233422,1.28373,1558.7,1558.6,7.12913205]
[1744385233626,1.28373,1558.7,1558.6,0.00963205]
[1744385234018,7.2929,1558.8,1558.6,0.00963205]
[1744385234627,0.00963205,1559.0,1558.6,0.00963205]
[1744385235027,0.00963205,1559.0,1558.6,3.31673205]
[1744385235422,4.02643205,1559.0,1558.6,3.31673205]
[1744385236226,1.28373,1558.7,1558.6,3.31673205]
[1744385236425,7.23532205,1559.0,1558.6,3.31673205]
[1744385236732,1.2837,1558.8,1558.6,3.31673205]
[1744385236923,1.2837,1558.8,1558.6,6.59083205]
[1744385237129,1.28373,1558.7,1558.6,6.59083205]
[1744385237329,1.28371,1558.8,1558.6,6.59083205]
[1744385237526,1.29319205,1559.0,1558.7,4.49151]
[1744385237930,0.00963205,1559.0,1558.7,3.2078]
[1744385238131,1.28363,1558.9,1558.7,3.2078]
[1744385238428,0.00963205,1559.0,1558.9,1.28357]
[1744385238726,1.28331,1559.3,1559.1,1.28339]
[1744385238928,3.20851,1559.1,1558.6,0.00963205]
[1744385239125,1.28373,1558.7,1558.6,0.00963205]
[1744385240123,1.28373,1558.7,1558.6,3.21743205]
[1744385240425,6.49772,1559.0,1558.6,4.50122205]
[1744385240731,1.28373,1558.7,1558.6,0.00963205]
[1744385241431,1.28373,1558.7,1558.6,3.21743205]
[1744385241635,1.2836,1558.9,1558.7,1.28368]
[1744385241834,1.2836,1558.9,1558.8,3.2078]
[1744385242037,1.2836,1558.9,1558.7,4.51262]
[1744385242242,1.28357,1558.9,1558.8,3.2078]
[1744385242440,3.20851,1559.1,1558.7,3.2289]
[1744385242742,1.28365,1558.8,1558.7,3.2289]
[1744385243132,1.28373,1558.7,1558.6,0.00963205]
[1744385243433,1.28373,1558.7,1558.6,3.21743205]
[1744385243643,1.28373,1558.7,1558.6,4.50124205]
[1744385243940,6.63924,1559.0,1558.6,3.21743205]
[1744385244144,1.28368,1558.8,1558.7,3.1258]
[1744385244346,1.28368,1558.8,1558.7,6.5279]
[1744385244544,7.3241,1559.0,1558.7,7.8116]
[1744385244746,1.28365,1558.8,1558.7,6.5279]
[1744385245450,1.2836,1558.9,1558.7,6.5279]
[1744385245639,1.2836,1558.9,1558.8,3.2078]
[1744385246746,5.641,1559.2,1558.9,1.28357]
[1744385246946,6.40586,1559.3,1559.0,1.28347]
[1744385247147,1.28343,1559.1,1558.9,1.2835]
[1744385247449,3.20831,1559.2,1558.8,3.2078]
[1744385247640,1.28362,1558.9,1558.8,4.49144]
[1744385247839,1.28362,1558.9,1558.8,9.49144]
[1744385248039,6.40584,1559.3,1558.8,3.2078]
[1744385248240,9.62383,1559.4,1558.8,9.626]
[1744385248450,3.2077,1559.5,1559.0,3.2078]
[1744385248644,1.28332,1559.2,1559.1,4.45694]
[1744385248843,1.28332,1559.2,1559.1,4.457]
[1744385249150,1.28332,1559.2,1559.1,43.9736]
[1744385250147,1.28332,1559.2,1559.1,45.25697]
[1744385250347,15.38101,1559.6,1559.2,1.28326]
[1744385250645,1.28318,1559.4,1559.3,1.28321]
[1744385250951,1.28318,1559.4,1559.3,42.08321]
[1744385251253,1.28313,1559.5,1559.3,40.8]
[1744385251446,6.9822,1559.6,1559.4,6.8618]
[1744385251749,1.28307,1559.5,1559.4,6.8618]
[1744385252447,3.4502,1559.9,1559.4,6.8618]
[1744385252644,1.28289,1559.8,1559.6,4.49071]
[1744385252840,1.28289,1559.8,1559.7,3.6987]
[1744385253753,5.16379,1559.8,1559.7,3.6987]
[1744385254253,1.28299,1559.6,1559.5,3.3397]
[1744385254553,1.28296,1559.7,1559.5,4.62271]
[1744385254743,3.8809,1559.8,1559.5,3.3397]
[1744385254744,1.28299,1559.6,1559.5,3.3397]
[1744385255055,1.28299,1559.6,1559.5,4.62277]
[1744385255454,3.8809,1559.8,1559.5,3.3397]
[1744385255756,1.28288,1559.8,1559.6,8.27409]
[1744385255958,1.28281,1559.9,1559.7,3.7833]
[1744385256256,3.9581,1560.0,1559.7,5.06616]
[1744385256456,1.28278,1559.9,1559.8,4.49061]
[1744385256757,5.24083,1560.0,1559.8,4.49061]
[1744385256957,5.24076,1560.0,1559.9,3.7833]
[1744385257660,3.20584,1560.4,1560.0,1.28263]
[1744385257859,1.28257,1560.2,1560.1,3.7833]
[1744385259652,1.28242,1560.3,1560.2,1.2825]
[1744385259846,1.28239,1560.4,1560.3,1.28242]
[1744385260046,9.58466,1560.7,1560.3,1.28242]
[1744385260250,1.28233,1560.4,1560.3,1.28242]
[1744385260455,3.8778,1560.6,1560.2,8.8358]
[1744385260655,1.28238,1560.4,1560.3,1.28242]
[1744385260858,1.28238,1560.4,1560.2,10.11823]
[1744385261159,1.28238,1560.4,1560.3,1.28242]
[1744385261654,3.8778,1560.6,1560.4,1.28229]
[1744385261853,3.8778,1560.6,1560.4,3.2078]
[1744385261854,1.28229,1560.5,1560.4,3.2078]
[1744385262154,1.28207,1560.8,1560.6,1.2821]
[1744385262458,1.28207,1560.8,1560.6,4.4899]
[1744385262653,1.28209,1560.7,1560.6,4.4899]
[1744385262861,1.28209,1560.7,1560.6,40.8]
[1744385263558,1.28209,1560.7,1560.6,43.9905]
[1744385265163,1.28209,1560.7,1560.6,3.1905]
[1744385265661,1.28225,1560.5,1560.4,3.2078]
[1744385266360,1.28225,1560.5,1560.3,40.8]
[1744385266361,1.28233,1560.4,1560.3,40.8]
[1744385266558,1.28239,1560.4,1560.2,4.61966]
[1744385266761,3.3187,1560.8,1560.5,1.28224]
[1744385267063,8.60186,1560.8,1560.6,42.08215]
[1744385267259,7.3198,1560.8,1560.6,42.08214]
[1744385267458,8.83045,1561.1,1560.7,1.28209]
[1744385267658,5.22596,1561.0,1560.7,3.2078]
[1744385267852,1.28186,1561.0,1560.9,1.28192]
[1744385268263,1.28192,1560.9,1560.8,1.29157205]
[1744385268456,1.28191,1561.0,1560.8,1.29157205]
[1744385268658,1.28191,1561.0,1560.9,1.28192]
[1744385268956,1.28191,1561.0,1560.8,1.29157205]
[1744385269156,1.2819,1561.0,1560.8,1.29157205]
[1744385269363,1.28192,1560.9,1560.8,1.29163205]
[1744385269559,1.28192,1560.9,1560.8,0.00963205]
[1744385269767,1.28192,1560.9,1560.8,1.29163205]
[1744385269962,1.28192,1560.9,1560.8,0.00963205]
[1744385273463,6.28192,1560.9,1560.8,0.00963205]
[1744385273763,5.08882,1560.9,1560.8,0.00963205]
[1744385274060,10.08882,1560.9,1560.8,0.00963205]
[1744385274266,10.08882,1560.9,1560.8,2.05e-06]
[1744385274465,12.98462,1560.9,1560.8,2.05e-06]
[1744385275567,7.98462,1560.9,1560.8,2.05e-06]
[1744385278461,5.08882,1560.9,1560.8,2.05e-06]
[1744385280971,10.08882,1560.9,1560.8,2.05e-06]
[1744385281565,5.08882,1560.9,1560.8,2.05e-06]
[1744385283268,5.08882,1560.9,1560.8,3.86560205]
[1744385283470,5.08882,1560.9,1560.8,2.05e-06]
[1744385284172,10.08882,1560.9,1560.8,2.05e-06]
[1744385284569,5.08882,1560.9,1560.8,2.05e-06]
[1744385286069,10.08882,1560.9,1560.8,2.05e-06]
[1744385286373,5.08882,1560.9,1560.8,2.05e-06]
[1744385290679,16.02082,1560.9,1560.8,2.05e-06]
[1744385290978,16.02082,1560.9,1560.2,3.2078]
[1744385290979,1.2825,1560.2,1560.1,3.8928]
[1744385291483,6.41208,1560.4,1560.1,3.8928]
[1744385291484,1.28248,1560.3,1560.1,8.8928]
[1744385291780,1.28242,1560.3,1560.2,3.8928]
[1744385292080,1.28242,1560.3,1560.2,13.3831]
[1744385292670,1.28242,1560.3,1560.2,12.1006]
[1744385293679,1.28242,1560.3,1560.2,8.3831]
[1744385293879,1.28242,1560.3,1560.2,7.1006]
[1744385294981,1.28242,1560.3,1560.2,8.3831]
[1744385295482,1.28242,1560.3,1560.2,7.1006]
[1744385296081,1.28242,1560.3,1560.2,8.3831]
[1744385296383,1.28242,1560.3,1560.2,7.1006]
[1744385298185,16.28845622,1561.0,1560.3,3.20605]
[1744385298380,1.28205,1560.8,1560.7,1.28209]
[1744385298581,1.28205,1560.8,1560.6,7.2795]
[1744385298782,1.28198,1560.9,1560.7,8.26153]
[1744385298983,1.28198,1560.9,1560.8,7.1095]
[1744385299185,13.77507416,1560.9,1560.8,7.1095]
[1744385300687,13.77507416,1560.9,1560.8,8.3915]
[1744385300887,13.77507416,1560.9,1560.8,7.1095]
[1744385301591,17.87627416,1560.9,1560.8,7.1095]
[1744385302184,13.77507416,1560.9,1560.8,7.1095]
[1744385302987,12.49309416,1560.9,1560.6,6.7156]
[1744385303193,13.77508416,1560.9,1560.7,9.01381]
[1744385303492,1.28199,1560.9,1560.8,4.1856]
[1744385305589,1.28192,1560.9,1560.8,5.4676]
[1744385305998,1.28192,1560.9,1560.8,4.1856]
[1744385306195,1.28192,1560.9,1560.8,5.4676]
[1744385307205,1.28192,1560.9,1560.8,8.6754]
[1744385307605,7.54157045,1561.0,1560.9,1.28192]
[1744385307906,8.82341045,1561.0,1560.9,5.43042]
[1744385308204,8.82341045,1561.0,1560.9,4.1485]
[1744385308401,12.72821045,1561.0,1560.9,4.1485]
[1744385309605,8.82341045,1561.0,1560.9,4.1485]
[1744385310107,12.72821045,1561.0,1560.9,4.1485]
[1744385312508,1.28192,1560.9,1560.8,0.00963205]
[1744385312710,5.19634205,1561.0,1560.9,1.28192]
[1744385312908,1.28192,1560.9,1560.8,8.72528205]
[1744385313109,1.29153205,1561.0,1560.9,1.28192]
[1744385313313,1.28192,1560.9,1560.8,4.49936205]
[1744385313814,1.28192,1560.9,1560.8,3.21743205]
[1744385314010,1.28192,1560.9,1560.8,4.49943205]
[1744385314208,1.29152205,1561.0,1560.9,1.28192]
[1744385314404,1.28192,1560.9,1560.8,4.49938205]
[1744385315503,1.28192,1560.9,1560.8,4.49937205]
[1744385316305,1.28192,1560.9,1560.8,3.21743205]
[1744385316714,0.00963205,1561.0,1560.8,3.21743205]
[1744385317010,0.00963205,1561.0,1560.8,12.02744205]
[1744385317217,7.5319384,1561.1,1561.0,1.28184]
[1744385317411,7.5319384,1561.1,1561.0,4.48964]
[1744385317610,7.5319384,1561.1,1561.0,12.93814]
[1744385318016,2.0932384,1561.1,1561.0,12.93814]
[1744385320122,10.04258454,1561.3,1561.2,1.28168]
[1744385320316,11.32417454,1561.3,1561.2,10.09348]
[1744385320518,1.28159,1561.3,1561.2,10.09348]
[1744385321117,1.28158,1561.4,1561.3,1.28154]
[1744385321621,1.30513,1561.5,1561.4,1.28151]
[1744385321821,1.30513,1561.5,1561.4,4.48931]
[1744385322619,0.0237,1561.5,1561.2,3.2078]
[1744385322820,0.0237,1561.5,1561.4,4.48931]
[1744385323125,1.30513,1561.5,1561.4,3.2078]
[1744385323325,1.3052,1561.5,1561.4,1.28151]
[1744385323621,1.28151,1561.4,1561.3,7.88335]
[1744385323921,5.4581,1561.5,1561.4,1.28151]
[1744385324426,1.28151,1561.4,1561.3,7.88336]
[1744385324625,1.28151,1561.4,1561.3,4.67556]
[1744385324829,1.28151,1561.4,1561.3,3.394]
[1744385325124,1.28151,1561.4,1561.3,4.48939]
[1744385325427,5.45809,1561.5,1561.4,1.28151]
[1744385325825,0.0237,1561.5,1561.4,1.28151]
[1744385326027,0.0237,1561.5,1561.4,4.76121]
[1744385326527,1.30513,1561.5,1561.4,4.76121]
[1744385327127,0.0237,1561.5,1561.4,4.76121]
[1744385329427,1.28113,1561.9,1561.8,1.2811]
[1744385330128,8.81278,1562.0,1561.9,1.2811]
[1744385330327,13.43328454,1562.2,1561.9,5.2138]
[1744385330523,1.28097,1562.1,1562.0,1.28094]
[1744385330719,15.51270454,1562.2,1562.1,1.28094]
[1744385330920,10.04258454,1562.2,1562.0,7.1405]
[1744385331225,1.28094,1562.1,1562.0,3.2078]
[1744385331528,5.47014,1562.1,1562.0,40.8]
[1744385331726,5.47014,1562.1,1561.8,5.2138]
[1744385331727,1.2811,1561.9,1561.8,5.2138]
[1744385331920,1.28118,1561.8,1561.7,0.00963205]
[1744385332930,5.30718,1561.8,1561.7,0.00963205]
[1744385333225,5.30718,1561.8,1561.7,4.49870205]
[1744385333432,1.28118,1561.8,1561.7,7.31743205]
[1744385333625,1.28118,1561.8,1561.7,4.10963205]
[1744385333928,4.58306,1561.9,1561.7,8.59864205]
[1744385334227,1.28118,1561.8,1561.7,7.31743205]
[1744385334428,1.28118,1561.8,1561.7,4.10963205]
[1744385334623,5.19358,1561.8,1561.7,4.10963205]
[1744385335029,5.19358,1561.8,1561.7,0.00963205]
[1744385335832,3.3019,1561.9,1561.7,3.21743205]
[1744385336024,3.413,1562.0,1561.8,4.2348]
[1744385336223,1.2811,1561.9,1561.8,5.51596]
[1744385336629,1.28118,1561.8,1561.7,4.49862205]
[1744385337032,1.28118,1561.8,1561.7,7.45223205]
[1744385337325,3.2078,1562.3,1561.7,15.65532205]
[1744385337519,7.3828,1562.2,1561.9,3.2078]
[1744385337724,1.28102,1562.0,1561.9,3.2078]
[1744385338029,1.28102,1562.0,1561.9,4.4889]
[1744385338329,1.28102,1562.0,1561.8,7.148]
[1744385338528,5.26278,1562.1,1562.0,1.28102]
[1744385338729,3.9818,1562.1,1562.0,1.28102]
[1744385338929,5.26274,1562.1,1562.0,1.28102]
[1744385339333,3.9818,1562.1,1562.0,1.28102]
[1744385339527,1.28084,1562.3,1562.2,1.28086]
[1744385339724,3.9818,1562.3,1562.1,4.48868]
[1744385339925,1.28086,1562.2,1562.1,1.2809]
[1744385340231,1.28086,1562.2,1562.1,1.28089]
[1744385340421,1.28086,1562.2,1561.9,8.8098]
[1744385340624,3.20215,1562.2,1561.9,10.09089]
[1744385340827,1.28102,1562.0,1561.9,8.8098]
[1744385341027,1.28102,1562.0,1561.9,10.0909]
[1744385341232,1.28102,1562.0,1561.9,8.8098]
[1744385341531,1.28101,1562.1,1561.9,3.2078]
[1744385341724,1.28099,1562.1,1562.0,1.281]
[1744385341926,1.28102,1562.0,1561.9,4.48883]
[1744385342328,3.8334,1562.2,1562.0,1.28101]
[1744385342329,1.281,1562.1,1562.0,1.28101]
[1744385342528,3.20181,1562.4,1561.9,8.8098]
[1744385342830,1.28088,1562.2,1562.1,3.2078]
[1744385343528,1.28102,1562.0,1561.9,8.8098]
[1744385343738,1.281,1562.1,1562.0,1.28102]
[1744385344032,8.73532,1562.2,1562.0,1.28102]
[1744385344229,7.4544,1562.2,1562.0,1.28102]
[1744385344431,4.2415,1562.1,1562.0,1.28102]
[1744385344828,5.5225,1562.1,1561.9,10.09084]
[1744385345126,3.36,1562.3,1561.9,12.01242]
[1744385345330,4.2415,1562.1,1562.0,1.28095]
[1744385345732,5.52244,1562.1,1562.0,1.28095]
[1744385345932,8.27344,1562.3,1561.9,12.0125]
[1744385346135,5.52238,1562.2,1562.1,1.28094]
[1744385346635,1.28094,1562.1,1561.9,8.8098]
[1744385346830,1.28094,1562.1,1562.0,1.28096]
[1744385347027,5.23191,1562.2,1562.1,1.28094]
[1744385347230,1.28095,1562.1,1562.0,1.28095]
[1744385347627,1.28102,1562.0,1561.9,4.48882]
[1744385347937,1.28118,1561.8,1561.7,1.29083205]
[1744385348131,8.81726,1561.9,1561.8,1.28118]
[1744385348531,3.36,1562.3,1561.8,1.28118]
[1744385348532,6.56203,1562.3,1561.8,3.2078]
[1744385348730,5.23197,1562.1,1562.0,1.28098]
[1744385349129,5.23197,1562.1,1562.0,4.48878]
[1744385349423,5.23197,1562.1,1562.0,1.28098]
[1744385349737,1.28102,1562.0,1561.9,1.28106]
[1744385349936,5.37848,1562.1,1562.0,1.28094]
[1744385350236,4.0975,1562.1,1562.0,4.48874]
[1744385350631,4.0975,1562.1,1562.0,8.38884]
[1744385350934,4.86601,1562.2,1562.1,1.28094]
[1744385351135,8.96351,1562.2,1562.1,3.9001]
[1744385351340,1.28091,1562.2,1562.1,5.18104]
[1744385352240,1.28086,1562.2,1562.1,5.18099]
[1744385352538,1.2808,1562.3,1562.2,1.28086]
[1744385352738,1.2808,1562.3,1562.2,5.18096]
[1744385353036,5.1078,1562.3,1562.2,5.18096]
[1744385353433,10.04258454,1562.8,1562.5,3.2014]
[1744385353639,10.04258454,1562.8,1562.4,3.2078]
[1744385353640,1.28061,1562.5,1562.4,3.2078]
[1744385353842,1.28053,1562.6,1562.5,0.00960092]
[1744385354233,5.10753,1562.6,1562.5,0.00960092]
[1744385354740,1.28077,1562.3,1562.2,1.28084]
[1744385354938,1.28086,1562.2,1562.1,5.39067]
[1744385355237,3.20196,1562.3,1562.0,4.48878]
[1744385355439,5.10794,1562.1,1562.0,3.2078]
[1744385355941,1.28102,1562.0,1561.9,4.11940092]
[1744385356240,3.827,1562.1,1562.0,1.28102]
[1744385356444,0.00949918,1562.2,1562.1,1.28094]
[1744385356634,0.00949918,1562.2,1562.1,8.25014]
[1744385356833,1.29035918,1562.2,1562.1,8.25014]
[1744385357038,0.00949918,1562.2,1562.1,8.25014]
[1744385357438,1.29035918,1562.2,1562.1,8.25014]
[1744385357641,0.00949918,1562.2,1562.1,8.25014]
[1744385358244,1.29035918,1562.2,1562.1,8.25014]
[1744385358445,0.00949918,1562.2,1562.1,8.25014]
[1744385358844,1.29035918,1562.2,1562.1,8.25014]
[1744385359146,0.00949918,1562.2,1562.1,8.25014]
[1744385359746,1.29035918,1562.2,1562.1,6.9692]
[1744385359944,1.29035918,1562.2,1562.1,8.25014]
[1744385360144,1.29035918,1562.2,1562.1,3.4174]
[1744385360346,1.29035918,1562.2,1562.1,4.69834]
[1744385360549,1.29035918,1562.2,1562.1,3.4174]
[1744385360841,5.41515918,1562.2,1562.1,4.69834]
[1744385361048,4.13429918,1562.2,1562.0,3.2078]
[1744385361239,4.13429918,1562.2,1562.1,1.28094]
[1744385361942,4.13429918,1562.2,1562.0,3.2078]
[1744385362149,1.28094,1562.1,1562.0,3.2078]
[1744385362445,0.00949918,1562.2,1562.1,1.28094]
[1744385363342,1.29035918,1562.2,1562.1,1.28094]
[1744385364146,1.28094,1562.1,1562.0,4.48876]
[1744385364346,1.29042918,1562.2,1562.1,1.28094]
[1744385364548,1.28094,1562.1,1562.0,4.48875]
[1744385364745,1.29040918,1562.2,1562.1,1.28094]
[1744385364938,0.00949918,1562.2,1562.1,1.28094]
[1744385365339,1.29035918,1562.2,1562.1,1.28094]
[1744385365539,0.00949918,1562.2,1562.1,1.28094]
[1744385366144,0.00949918,1562.2,1562.1,6.28094]
[1744385366445,1.28094,1562.1,1562.0,3.2078]
[1744385366646,8.09684,1562.1,1562.0,3.2078]
[1744385366851,12.06074,1562.1,1562.0,3.2078]
[1744385367150,0.00949918,1562.2,1562.1,1.28094]
[1744385367350,1.29037918,1562.2,1562.1,1.28094]
[1744385367952,1.28094,1562.1,1562.0,8.03995]
[1744385368251,1.29041918,1562.2,1562.1,1.28094]
[1744385368447,1.29035918,1562.2,1562.1,1.28094]
[1744385369348,0.00949918,1562.2,1562.1,1.28094]
[1744385370147,1e-08,1562.2,1562.1,10.35094]
[1744385370949,1e-08,1562.2,1562.1,5.35094]
[1744385371451,1.28086001,1562.2,1562.1,5.35094]
[1744385371647,1e-08,1562.2,1562.1,5.35094]
[1744385371850,1.28086001,1562.2,1562.1,5.35094]
[1744385372053,1.28086001,1562.2,1562.1,4.07]
[1744385372450,1.28094,1562.1,1562.0,8.03995]
[1744385372646,1.28094,1562.1,1562.0,12.00095]
[1744385373047,4.12100001,1562.2,1562.1,1.28094]
[1744385373048,5.40192001,1562.2,1562.1,1.28094]
[1744385373251,5.40192001,1562.2,1562.1,5.24194]
[1744385373647,1e-08,1562.2,1562.1,5.24194]
[1744385375256,1e-08,1562.2,1562.1,10.24194]
[1744385375955,1e-08,1562.2,1562.1,5.24194]
[1744385376657,1e-08,1562.2,1562.1,10.24194]
[1744385377161,1e-08,1562.2,1562.1,5.24194]
[1744385377961,1.28094,1562.1,1562.0,3.2078]
[1744385378151,1.28102,1562.0,1561.9,0.00960092]
[1744385378548,6.28102,1562.0,1561.9,0.00960092]
[1744385379058,10.45432,1562.0,1561.9,0.00960092]
[1744385379258,16.03232,1562.0,1561.9,0.00960092]
[1744385380056,10.45432,1562.0,1561.9,0.00960092]
[1744385380854,10.45432,1562.0,1561.9,9.9978804]
[1744385381062,5.45432,1562.0,1561.9,9.9978804]
[1744385381452,1.28102,1562.0,1561.9,9.9978804]
[1744385382157,5.26822,1562.0,1561.9,9.9978804]
[1744385382458,19.05402,1562.0,1561.9,5.01241375]
[1744385382654,19.05402,1562.0,1561.9,2.04844375]
[1744385382857,19.05402,1562.0,1561.9,0.46305375]
[1744385383058,1.2811,1561.9,1561.8,14.90864779]
[1744385383356,5.1568,1561.9,1561.8,14.90864779]
[1744385383555,10.1568,1561.9,1561.8,14.90864779]
[1744385383961,10.1568,1561.9,1561.8,7.79e-06]
[1744385384263,1.28118,1561.8,1561.7,18.28129648]
[1744385384454,8.36468,1561.8,1561.7,9.2e-07]
[1744385384652,1.28168,1561.2,1561.1,16.94507556]
[1744385385157,1.28162,1561.3,1561.1,25.63835556]
[1744385385360,1.28168,1561.2,1561.1,20.15287556]
[1744385385552,5.15732,1561.3,1561.1,21.43463556]
[1744385385758,5.15737,1561.3,1561.1,21.43460556]
[1744385385958,1.28168,1561.2,1561.1,20.15287556]
[1744385386157,1.28168,1561.2,1561.1,16.94507556]
[1744385386460,1.28164,1561.3,1561.2,1.28168]
[1744385386661,1.28164,1561.3,1561.2,4.92928]
[1744385387062,1.29117092,1561.4,1561.2,4.92928]
[1744385387263,0.00960092,1561.4,1561.3,4.48939]
[1744385387464,0.00960092,1561.4,1561.3,7.95689]
[1744385388161,0.00960092,1561.4,1561.3,12.95689]
[1744385388359,1.29111092,1561.4,1561.3,7.95689]
[1744385388751,6.31065154,1561.4,1561.3,6.6753]
[1744385388956,6.31065154,1561.4,1561.3,3.4675]
[1744385389262,10.50015154,1561.4,1561.3,3.4675]
[1744385389666,9.21864154,1561.4,1561.3,1.28159]
[1744385389966,10.50019154,1561.4,1561.2,4.92921]
[1744385390262,5.02914154,1561.4,1561.3,1.28159]
[1744385390462,6.31065154,1561.4,1561.3,1.28159]
[1744385390962,10.41205154,1561.4,1561.3,1.28159]
[1744385391263,10.41205154,1561.4,1561.2,4.92921]
[1744385391965,9.13054154,1561.4,1561.3,3.2078]
[1744385392165,10.41212154,1561.4,1561.3,4.48939]
[1744385393067,5.39258092,1561.4,1561.3,4.48939]
[1744385393858,5.39258092,1561.4,1561.3,3.2078]
[1744385394058,5.39258092,1561.4,1561.3,4.48939]
[1744385394369,5.39258092,1561.4,1561.3,3.2078]
[1744385394967,5.39258092,1561.4,1561.3,4.48939]
[1744385396265,4.11100092,1561.4,1561.3,4.48939]
[1744385396469,0.00960092,1561.4,1561.3,4.48939]
[1744385397270,0.00960092,1561.4,1561.3,9.48939]
[1744385400275,1.29111092,1561.4,1561.3,8.41869]
[1744385400967,5.45391092,1561.4,1561.3,3.2078]
[1744385401161,5.45391092,1561.4,1561.0,3.21740092]
[1744385401162,1.28176,1561.1,1561.0,3.21740092]
[1744385401473,1.29117092,1561.4,1561.3,1.28159]
[1744385401768,0.00960092,1561.4,1561.3,1.28159]
[1744385402173,0.00960092,1561.4,1561.3,4.48939]
[1744385402373,0.00960092,1561.4,1561.3,13.72809]
[1744385402775,0.00960092,1561.4,1561.3,8.72809]
[1744385403375,1.29111092,1561.4,1561.3,7.4465]
[1744385403574,0.00960092,1561.4,1561.3,8.72809]
[1744385406372,0.00960092,1561.4,1561.3,5.52029]
[1744385406672,0.00960092,1561.4,1561.3,8.72809]
[1744385407574,1.29111092,1561.4,1561.3,8.72809]
[1744385407878,1.28159,1561.3,1561.2,3.4859]
[1744385408077,1.28159,1561.3,1561.1,7.7303]
[1744385408078,1.28168,1561.2,1561.1,7.7303]
[1744385408280,1.28168,1561.2,1561.1,4.1268]
[1744385408578,6.28168,1561.2,1561.1,5.40856]
[1744385408780,1.28168,1561.2,1561.1,4.1268]
[1744385408973,7.2625,1561.3,1561.2,1.28168]
[1744385408974,3.8823,1561.3,1561.2,1.28168]
[1744385409176,6.86219092,1561.4,1561.3,1.28159]
[1744385409478,3.89190092,1561.4,1561.3,5.40839]
[1744385409677,1.29111092,1561.4,1561.3,4.1268]
[1744385409979,1.28176,1561.1,1561.0,7.02980092]
[1744385410682,1.28176,1561.1,1561.0,11.15660092]
[1744385411184,1.28176,1561.1,1561.0,0.00960092]
[1744385411481,6.28176,1561.1,1561.0,0.00960092]
[1744385411677,10.48396,1561.1,1561.0,0.00960092]
[1744385414084,13.69176,1561.1,1561.0,0.00960092]
[1744385414979,19.62376,1561.1,1561.0,9.2e-07]
[1744385415281,5.48396,1561.1,1561.0,9.2e-07]
[1744385415881,1.28173,1561.2,1561.0,1.28184092]
[1744385416082,1.28176,1561.1,1561.0,7.72380092]
[1744385416482,1.28176,1561.1,1561.0,9.00564092]
[1744385417387,1.28176,1561.1,1561.0,7.72380092]
[1744385418892,1.28176,1561.1,1561.0,9.2e-07]
[1744385421393,1.28176,1561.1,1561.0,3.20780092]
[1744385421692,1.28176,1561.1,1561.0,4.48964092]
[1744385421894,1.28176,1561.1,1561.0,8.68204092]
[1744385422302,1.28173,1561.2,1561.1,1.28176]
[1744385422498,1.28173,1561.2,1561.1,8.76866]
[1744385422803,5.01954062,1561.3,1561.1,7.4869]
[1744385423006,8.99224062,1561.3,1561.1,3.2945]
[1744385423203,6.30119062,1561.3,1561.2,1.28168]
[1744385423405,6.30119062,1561.3,1561.2,7.93068]
[1744385423599,5.01954062,1561.3,1561.2,12.93068]
[1744385424000,7.54558277,1561.4,1561.3,1.28159]
[1744385424201,7.54558277,1561.4,1561.3,6.85459]
[1744385424506,7.54558277,1561.4,1561.3,11.85459]
[1744385424998,10.04258454,1561.5,1561.4,1.28151]
[1744385425198,4.17658454,1561.5,1561.4,4.48931]
[1744385425398,4.17658454,1561.5,1561.4,9.48931]
[1744385426105,1.85767508,1561.6,1561.5,1.28143]
[1744385426303,14.86487056,1561.9,1561.8,1.28118]
[1744385426499,14.86487056,1561.9,1561.8,10.06198]
[1744385426706,13.56423056,1561.9,1561.8,55.86198]
[1744385427317,17.42842897,1562.0,1561.9,1.2811]
[1744385427511,0.00960002,1562.0,1561.9,1.2811]
[1744385427711,0.00960002,1562.0,1561.9,6.2811]
[1744385428102,2e-08,1562.0,1561.9,6.2811]
[1744385428304,2e-08,1562.0,1561.9,6.9219]
[1744385429601,12.53711245,1562.5,1562.4,1.28069]
[1744385429801,12.53711245,1562.5,1562.4,10.06049]
[1744385430906,4.2355,1562.5,1562.4,10.06049]
[1744385431701,4.89861,1562.8,1562.4,13.2622]
[1744385431907,3.6182,1562.8,1562.7,4.48825]
[1744385432210,4.1601,1562.8,1562.7,4.48825]
[1744385432913,4.1601,1562.8,1562.7,10.05825]
[1744385434408,1.28008,1563.2,1562.7,8.7778]
[1744385434606,4.1601,1563.1,1563.0,3.2078]
[1744385434817,6.9659,1563.3,1563.0,3.2078]
[1744385435118,4.1601,1563.2,1563.0,4.48796]
[1744385435313,1.28012,1563.1,1563.0,3.2078]